bitfinex-derivatives/quotes_BNBF0:USTF0_20250305
["timestamp","ask_amount","ask_price","bid_price","bid_amount"]
[1741143329744,0.33898879,589.99,589.06,1.24278761]
[1741143331643,4.16736407,590.78,589.06,1.24278761]
[1741143331843,4.47889185,590.77,589.06,1.24278761]
[1741143332038,4.47889185,590.76,589.06,1.24278761]
[1741143332241,4.47889185,590.75,589.06,1.24278761]
[1741143332443,4.81745026,590.74,589.06,1.24278761]
[1741143332638,0.33856988,590.72,589.07,0.33951822]
[1741143332842,0.31152778,590.71,589.07,0.33951822]
[1741143333043,0.33858707,590.69,589.07,0.33951822]
[1741143333239,0.31152778,590.68,589.07,0.33951822]
[1741143333742,0.33860427,590.66,589.07,0.33951822]
[1741143333939,0.31152778,590.65,589.07,0.33951822]
[1741143334344,0.31154012,590.64,589.07,0.33951822]
[1741143334644,0.31154012,590.63,589.07,0.33951822]
[1741143334845,0.31154012,590.65,589.07,0.33951822]
[1741143335140,0.31153261,590.64,589.07,0.33951822]
[1741143335447,0.31153261,590.63,589.07,0.33951822]
[1741143335642,0.31153261,590.62,589.07,0.33951822]
[1741143335843,0.31153261,590.61,589.07,0.33951822]
[1741143336040,0.31153261,590.6,589.07,0.33951822]
[1741143336242,0.31153261,590.61,589.07,0.33951822]
[1741143336643,0.31153261,590.61,589.56,1.24278761]
[1741143336847,0.31153261,590.63,589.56,1.24278761]
[1741143337148,0.31153261,590.62,589.56,1.24278761]
[1741143337342,0.31153261,590.61,589.56,1.24278761]
[1741143337541,2.94099103,590.62,589.56,1.24278761]
[1741143337742,0.33860427,590.66,589.56,1.24278761]
[1741143337743,0.33863867,590.6,589.56,1.24278761]
[1741143337949,0.31153261,590.59,589.56,1.24278761]
[1741143338145,0.33865587,590.57,589.56,1.24278761]
[1741143338342,0.31153261,590.56,589.52,1.24278761]
[1741143338547,0.33867307,590.54,589.52,1.24278761]
[1741143338745,0.31153261,590.53,589.52,1.24278761]
[1741143338944,0.33869028,590.51,589.52,1.24278761]
[1741143339145,0.31153261,590.5,589.52,1.24278761]
[1741143339349,0.33870749,590.48,589.52,1.24278761]
[1741143339542,0.31154712,590.47,589.52,1.24278761]
[1741143339741,0.3387247,590.45,589.52,1.24278761]
[1741143339945,0.31154712,590.44,589.52,1.24278761]
[1741143340144,0.33873617,590.43,589.52,1.24278761]
[1741143340342,0.31156378,590.42,589.52,1.24278761]
[1741143340548,0.33874764,590.41,589.45,1.24278761]
[1741143340750,0.31156378,590.4,589.45,1.24278761]
[1741143340947,0.33875912,590.39,589.45,1.24278761]
[1741143341149,0.31156378,590.38,589.45,1.24278761]
[1741143341349,0.3387706,590.37,589.45,1.24278761]
[1741143341551,0.31156378,590.36,589.45,1.24278761]
[1741143341751,0.33878207,590.35,589.45,1.24278761]
[1741143341947,0.31156378,590.34,589.45,1.24278761]
[1741143342149,0.33879355,590.33,589.45,1.24278761]
[1741143343055,0.33879355,590.33,589.38,1.25490875]
[1741143343056,0.33879355,590.33,589.29,1.24278761]
[1741143343448,0.31156208,590.32,589.29,1.24278761]
[1741143343651,0.33880503,590.31,589.29,1.24278761]
[1741143344456,0.31156411,590.3,589.29,1.24278761]
[1741143344660,0.65037855,590.29,589.29,1.24278761]
[1741143344956,0.65038429,590.28,589.29,1.24278761]
[1741143345157,0.65039003,590.27,589.29,1.24278761]
[1741143345351,0.65039577,590.26,589.29,1.24278761]
[1741143345561,0.33883373,590.26,589.29,1.24278761]
[1741143345762,0.33883373,590.26,589.39,1.24278761]
[1741143348766,0.33883373,590.26,589.44,1.24278761]
[1741143350762,0.33883373,590.26,589.48,1.24278761]
[1741143352570,0.31159885,590.25,589.35,1.24278761]
[1741143352868,0.33884521,590.24,589.35,1.24278761]
[1741143353461,0.3116051,590.23,589.35,1.24278761]
[1741143353663,0.33885669,590.22,589.35,1.24278761]
[1741143353867,0.31161888,590.21,589.35,1.24278761]
[1741143354170,0.33886818,590.2,589.35,1.24278761]
[1741143354566,0.33886818,590.2,589.4,1.24278761]
[1741143355967,0.31162702,590.19,589.4,1.24278761]
[1741143356774,0.31162702,590.19,588.99,2.56210536]
[1741143356775,0.31162702,590.19,589.42,1.24278761]
[1741143358773,0.33887966,590.18,589.42,1.24278761]
[1741143358974,0.31162702,590.17,589.42,1.24278761]
[1741143359179,0.33889114,590.16,589.42,1.24278761]
[1741143359474,0.33889114,590.16,589.36,1.24278761]
[1741143360476,0.31161832,590.15,589.36,1.24278761]
[1741143360674,0.33890263,590.14,589.36,1.24278761]
[1741143361875,0.31163349,590.13,589.42,1.24278761]
[1741143363078,0.31166904,590.12,589.42,1.24278761]
[1741143363278,0.6505889,590.11,589.42,1.24278761]
[1741143363479,0.3389256,590.1,589.42,1.24278761]
[1741143364177,0.3389256,590.1,589.22,1.24278761]
[1741143367181,0.3389256,590.1,589.47,1.24278761]
[1741143369076,0.3389256,590.1,589.01,1.24278761]
[1741143370582,2.63199322,590.74,589.01,1.24278761]
[1741143370782,0.33856988,590.72,589.01,1.24278761]
[1741143372183,0.33856988,590.72,589.34,1.24278761]
[1741143372782,0.31151638,590.71,589.34,1.24278761]
[1741143372984,0.33858707,590.69,589.34,1.24278761]
[1741143373779,0.31150337,590.68,589.34,1.24278761]
[1741143373977,0.33860427,590.66,589.34,1.24278761]
[1741143374381,0.33860427,590.66,589.3,1.24278761]
[1741143376585,0.31152365,590.65,589.3,1.24278761]
[1741143376988,0.33862147,590.63,589.3,1.24278761]
[1741143377183,0.31152365,590.62,589.3,1.24278761]
[1741143378488,0.3115538,590.61,589.3,1.24278761]
[1741143378685,0.3115538,590.6,589.3,1.24278761]
[1741143378880,0.33862147,590.63,589.3,1.24278761]
[1741143378881,0.3115538,590.59,589.3,1.24278761]
[1741143379084,0.3115538,590.62,589.3,1.24278761]
[1741143379387,0.3115538,590.61,589.3,1.24278761]
[1741143379584,0.3115538,590.6,589.3,1.24278761]
[1741143379886,0.3115538,590.6,589.18,1.25490875]
[1741143379887,0.3115538,590.59,589.46,1.24278761]
[1741143380082,0.3115538,590.58,589.46,1.24278761]
[1741143380281,1.01311009,590.59,589.46,1.24278761]
[1741143380482,1.01311009,590.57,589.46,1.24278761]
[1741143380681,1.32466389,590.56,589.46,1.24278761]
[1741143380885,1.32466389,590.55,589.46,1.24278761]
[1741143381080,0.3115538,590.54,589.46,1.24278761]
[1741143381281,0.3115538,590.53,589.46,1.24278761]
[1741143381585,0.3115538,590.52,589.46,1.24278761]
[1741143381785,0.3115538,590.51,589.46,1.24278761]
[1741143381989,0.3115538,590.5,589.17,1.24278761]
[1741143382181,0.3115538,590.49,589.17,1.24278761]
[1741143382381,0.3115538,590.48,589.17,1.24278761]
[1741143382582,0.3115538,590.47,589.17,1.24278761]
[1741143382787,0.3115538,590.46,589.17,1.24278761]
[1741143382981,1.01311009,590.58,589.17,1.24278761]
[1741143382982,0.3115538,590.45,589.17,1.24278761]
[1741143383186,0.3115538,590.44,589.17,1.24278761]
[1741143383491,0.33874191,590.42,589.17,1.24278761]
[1741143383684,0.3115538,590.41,589.17,1.24278761]
[1741143383887,0.33875912,590.39,589.15,1.24278761]
[1741143384083,0.3115538,590.38,589.15,1.24278761]
[1741143384288,0.33877633,590.36,589.15,1.24278761]
[1741143384488,0.3115538,590.35,589.15,1.24278761]
[1741143384787,0.33879355,590.33,589.15,1.24278761]
[1741143384992,0.3115538,590.32,589.15,1.24278761]
[1741143385185,0.33879355,590.33,589.15,1.24278761]
[1741143385186,0.33881077,590.3,589.15,1.24278761]
[1741143385384,0.31164363,590.29,589.15,1.24278761]
[1741143385592,0.33882225,590.28,589.15,1.24278761]
[1741143385791,0.31164363,590.27,589.15,1.24278761]
[1741143386083,0.33883373,590.26,589.15,1.24278761]
[1741143386287,0.31164363,590.25,589.15,1.24278761]
[1741143386488,0.31164363,590.25,589.12,1.24278761]
[1741143386885,0.33884521,590.24,589.12,1.24278761]
[1741143387087,0.31164363,590.23,589.12,1.24278761]
[1741143388092,0.33885669,590.22,589.24,1.24278761]
[1741143390091,0.31162465,590.21,589.24,1.24278761]
[1741143390289,0.31162465,590.21,588.81,2.56210536]
[1741143390290,0.33886818,590.2,589.18,1.24278761]
[1741143390695,0.31162158,590.19,589.18,1.24278761]
[1741143390898,0.33887966,590.18,589.18,1.24278761]
[1741143392402,0.33887966,590.18,589.07,1.58230583]
[1741143393894,0.31167175,590.17,589.07,1.58230583]
[1741143394091,0.33889114,590.16,589.07,1.58230583]
[1741143395294,0.33889114,590.16,589.09,1.24278761]
[1741143397798,0.33889114,590.16,589.07,0.33951822]
[1741143402402,0.31166288,590.15,589.07,0.33951822]
[1741143402603,0.33890263,590.14,589.07,0.33951822]
[1741143402797,0.31166261,590.13,589.21,1.24278761]
[1741143404395,0.33891411,590.12,589.21,1.24278761]
[1741143404604,0.31166261,590.11,589.21,1.24278761]
[1741143404797,0.3389256,590.1,589.21,1.24278761]
[1741143405002,0.31166261,590.09,589.04,1.24278761]
[1741143405203,0.33893709,590.08,589.04,1.24278761]
[1741143405598,0.31170901,590.07,589.04,1.24278761]
[1741143406106,0.31171085,590.06,589.04,1.24278761]
[1741143406302,0.31171085,590.05,589.04,1.24278761]
[1741143406604,0.33896007,590.04,589.04,1.24278761]
[1741143407404,0.33896007,590.04,588.92,1.24278761]
[1741143409214,0.33896007,590.04,588.95,1.24278761]
[1741143411108,0.33896007,590.04,589.0,1.24278761]
[1741143413618,0.33896007,590.04,588.44,2.56210536]
[1741143413619,0.33896007,590.04,588.87,1.24278761]
[1741143415120,0.33896007,590.04,588.9,1.24278761]
[1741143415716,0.31176263,590.03,588.9,1.24278761]
[1741143415920,0.33897156,590.02,588.9,1.24278761]
[1741143416414,0.31177816,590.01,588.9,1.24278761]
[1741143416621,0.33898305,590.0,588.9,1.24278761]
[1741143416818,0.31177816,589.99,588.9,1.24278761]
[1741143417920,0.31177816,589.99,588.96,1.24278761]
[1741143420922,0.31177816,589.99,589.0,1.24278761]
[1741143421123,0.33898305,590.0,589.0,1.24278761]
[1741143421322,0.31174882,589.99,589.0,1.24278761]
[1741143421717,0.33899454,589.98,589.0,1.24278761]
[1741143421919,0.31174882,589.97,589.0,1.24278761]
[1741143422818,0.31174882,589.97,589.06,1.24278761]
[1741143423518,0.33900603,589.96,589.06,1.24278761]
[1741143423718,0.31174882,589.95,589.06,1.24278761]
[1741143423918,0.33901752,589.94,589.06,1.24278761]
[1741143424122,0.31174882,589.93,589.06,1.24278761]
[1741143425323,0.31174882,589.93,588.98,1.24278761]
[1741143425720,0.33901752,589.94,588.98,1.24278761]
[1741143425919,0.31179433,589.93,588.98,1.24278761]
[1741143428023,0.31177644,589.92,588.98,1.24278761]
[1741143428223,0.31177644,589.93,588.98,1.24278761]
[1741143428419,0.31177644,589.92,588.99,1.24278761]
[1741143428624,0.31177644,589.91,588.99,1.24278761]
[1741143428819,0.31177644,589.9,588.99,1.24278761]
[1741143429025,0.31177644,589.89,588.99,1.24278761]
[1741143429326,0.31177644,589.88,588.99,1.24278761]
[1741143429523,0.33901752,589.94,588.99,1.24278761]
[1741143429723,0.31175158,589.93,588.99,1.24278761]
[1741143430125,0.33902902,589.92,588.99,1.24278761]
[1741143430319,0.31175158,589.91,588.99,1.24278761]
[1741143430918,0.31175158,589.91,589.06,1.24278761]
[1741143431321,0.33902902,589.92,589.06,1.24278761]
[1741143433422,0.33902902,589.92,588.93,1.24278761]
[1741143435632,0.33902902,589.92,589.21,1.24278761]
[1741143437627,0.33902902,589.92,589.13,1.25490875]
[1741143437628,0.33902902,589.92,589.19,1.24278761]
[1741143441030,0.33902902,589.92,589.23,1.24278761]
[1741143443432,0.33902902,589.92,589.02,1.24278761]
[1741143445834,0.33902902,589.92,589.04,1.24278761]
[1741143449932,0.33902902,589.92,589.27,1.24278761]
[1741143452437,0.33902902,589.92,589.2,1.24278761]
[1741143455034,0.33902902,589.92,589.07,1.24278761]
[1741143457538,0.33902902,589.92,588.99,1.77088722]
[1741143457539,0.33902902,589.92,589.09,1.24278761]
[1741143459644,0.33902902,589.92,589.26,1.24278761]
[1741143462850,0.33902902,589.92,589.14,1.24278761]
[1741143463751,0.3117865,589.91,589.14,1.24278761]
[1741143464150,0.33904051,589.9,589.14,1.24278761]
[1741143464344,0.3117865,589.89,589.14,1.24278761]
[1741143464545,0.33904051,589.9,589.14,1.24278761]
[1741143464748,0.31181483,589.89,589.14,1.24278761]
[1741143465746,0.31181483,589.89,588.95,1.24278761]
[1741143466151,0.31181483,589.89,588.95,1.23321955]
[1741143467247,0.31181483,589.88,588.95,1.23321955]
[1741143467452,0.31181483,589.87,588.95,1.23321955]
[1741143467655,0.31181483,589.86,588.95,1.23321955]
[1741143467850,0.33904051,589.9,588.95,1.23321955]
[1741143467851,0.31181483,589.85,588.95,1.23321955]
[1741143468152,0.31181483,589.84,588.64,1.25490875]
[1741143468347,0.33904051,589.9,588.64,1.25490875]
[1741143468554,0.31195337,589.89,588.64,1.25490875]
[1741143469947,0.33904051,589.9,588.64,1.25490875]
[1741143470151,0.33905775,589.87,588.64,1.25490875]
[1741143470352,0.33905775,589.87,588.11,2.56210536]
[1741143470353,0.31192557,589.86,588.35,1.25490875]
[1741143471756,0.31192557,589.86,588.22,1.25490875]
[1741143473952,0.339075,589.84,588.22,1.25490875]
[1741143474156,0.31192557,589.83,588.22,1.25490875]
[1741143474355,0.33909225,589.81,588.22,1.25490875]
[1741143474555,0.31192557,589.8,588.22,1.25490875]
[1741143474951,0.31193727,589.79,588.19,1.25490875]
[1741143475156,0.33911524,589.77,588.19,1.25490875]
[1741143475357,0.31193727,589.76,588.19,1.25490875]
[1741143475558,0.33913249,589.74,588.19,1.25490875]
[1741143475759,0.31193727,589.73,588.19,1.25490875]
[1741143476361,0.339144,589.72,588.19,1.25490875]
[1741143477655,0.339144,589.72,588.14,1.25490875]
[1741143479863,0.339144,589.72,588.33,1.7725108]
[1741143480066,0.339144,589.72,588.34,0.33993949]
[1741143480565,0.31188453,589.71,588.34,0.33993949]
[1741143480764,0.3391555,589.7,588.34,0.33993949]
[1741143482663,0.31189242,589.69,588.34,0.33993949]
[1741143482963,0.339167,589.68,588.34,0.33993949]
[1741143484966,0.31191468,589.67,588.34,0.33993949]
[1741143485361,0.3391785,589.66,588.34,0.33993949]
[1741143485562,0.31191468,589.65,588.34,0.33993949]
[1741143485769,0.33919001,589.64,588.34,0.33993949]
[1741143486769,0.31193794,589.63,588.34,0.33993949]
[1741143487270,0.33920151,589.62,588.34,0.33993949]
[1741143488069,0.31194974,589.61,588.34,0.33993949]
[1741143488472,0.33921302,589.6,588.34,0.33993949]
[1741143492371,0.31197508,589.59,588.34,0.33993949]
[1741143493170,0.29718834,589.59,588.34,0.33993949]
[1741143494367,0.3120207,589.58,588.34,0.33993949]
[1741143494570,0.3120207,589.57,588.34,0.33993949]
[1741143494771,0.3120207,589.56,588.34,0.33993949]
[1741143495073,0.3120207,589.55,588.34,0.33993949]
[1741143495274,0.3120207,589.54,588.34,0.33993949]
[1741143495479,0.3120207,589.53,588.34,0.33993949]
[1741143495680,0.3392533,589.53,588.34,0.33993949]
[1741143495879,0.31202847,589.52,588.34,0.33993949]
[1741143496578,0.65130485,589.51,588.34,0.33993949]
[1741143496779,0.33927632,589.49,588.34,0.33993949]
[1741143496975,0.31204004,589.48,588.34,0.33993949]
[1741143497374,0.33928783,589.47,588.34,0.33993949]
[1741143497580,0.31204004,589.46,588.34,0.33993949]
[1741143497884,0.33928783,589.47,588.13,1.25490875]
[1741143499782,0.33928783,589.47,587.27,1.25490875]
[1741143500178,0.33928783,589.47,587.38,0.34049507]
[1741143500885,0.33928783,589.47,587.39,1.77388866]
[1741143501281,0.31206892,589.46,587.39,1.77388866]
[1741143501479,0.31206892,589.46,588.22,1.25490875]
[1741143501882,0.33929934,589.45,588.22,1.25490875]
[1741143502481,0.31203594,589.44,588.22,1.25490875]
[1741143502888,0.33931085,589.43,588.22,1.25490875]
[1741143503389,0.31203392,589.42,588.22,1.25490875]
[1741143503586,0.33932237,589.41,588.22,1.25490875]
[1741143504085,0.33932237,589.41,588.25,1.25490875]
[1741143505791,0.33932237,589.41,588.16,1.25490875]
[1741143506185,0.33932237,589.41,588.17,0.34003774]
[1741143513893,0.33932237,589.41,588.19,1.25490875]
[1741143514486,0.3120498,589.4,588.19,1.25490875]
[1741143514689,0.33933388,589.39,588.19,1.25490875]
[1741143515788,0.31205539,589.38,588.19,1.25490875]
[1741143515993,0.3393454,589.37,588.19,1.25490875]
[1741143517089,0.3393454,589.37,588.17,0.34003774]
[1741143517090,0.3393454,589.37,588.33,1.25490875]
[1741143518995,0.3393454,589.37,588.2,1.5058905]
[1741143518996,0.3393454,589.37,588.2,1.25490875]
[1741143521800,0.3393454,589.37,588.43,1.25490875]
[1741143523301,0.31204616,589.36,588.43,1.25490875]
[1741143523503,0.33935691,589.35,588.43,1.25490875]
[1741143523700,0.31204616,589.34,588.43,1.25490875]
[1741143524004,0.33936843,589.33,588.43,1.25490875]
[1741143524303,0.31204616,589.32,588.43,1.25490875]
[1741143524503,0.33937995,589.31,588.48,1.25490875]
[1741143524900,0.31209398,589.3,588.48,1.25490875]
[1741143525101,0.33939147,589.29,588.48,1.25490875]
[1741143525301,0.31209398,589.28,588.48,1.25490875]
[1741143525501,0.33940299,589.27,588.48,1.25490875]
[1741143525801,0.31210395,589.26,588.48,1.25490875]
[1741143526005,0.3394145,589.25,588.48,1.25490875]
[1741143526598,0.3394145,589.25,588.31,1.25490875]
[1741143529205,0.3394145,589.25,588.17,0.34003774]
[1741143529206,0.31209673,589.24,588.61,1.2688611]
[1741143530102,0.33942603,589.23,588.61,1.2688611]
[1741143530297,0.31209673,589.22,588.61,1.2688611]
[1741143530499,0.33943755,589.21,588.61,1.2688611]
[1741143530903,0.31211551,589.2,588.61,1.2688611]
[1741143531304,0.31211551,589.2,588.5,1.2688611]
[1741143531799,0.33944907,589.19,588.5,1.2688611]
[1741143533099,0.33944907,589.19,588.08,2.56210536]
[1741143533100,0.33944907,589.19,588.47,1.2688611]
[1741143536103,0.33944907,589.19,588.38,1.2688611]
[1741143538109,0.33944907,589.19,587.8,1.2688611]
[1741143540811,0.33944907,589.19,588.35,1.2688611]
[1741143542312,0.33944907,589.19,588.33,1.2688611]
[1741143544707,0.33944907,589.19,588.34,1.2688611]
[1741143547015,0.33944907,589.19,588.48,1.2688611]
[1741143549614,0.33944907,589.19,587.76,1.2688611]
[1741143551418,0.33944907,589.19,588.2,1.2688611]
[1741143553421,0.33944907,589.19,587.97,1.2688611]
[1741143556114,0.33944907,589.19,587.15,2.56210536]
[1741143556115,0.33944907,589.19,588.12,1.2688611]
[1741143556621,0.31220454,589.18,588.12,1.2688611]
[1741143558623,0.33946635,589.16,588.12,1.2688611]
[1741143558824,0.31220454,589.15,588.12,1.2688611]
[1741143559122,0.31220454,589.15,587.45,2.56210536]
[1741143559123,0.33946635,589.16,588.18,1.2688611]
[1741143560123,0.3122567,589.15,588.18,1.2688611]
[1741143560524,0.33948364,589.13,588.18,1.2688611]
[1741143560922,0.31227149,589.12,588.18,1.2688611]
[1741143562123,0.31227149,589.12,587.99,1.2688611]
[1741143565429,0.31227149,589.12,587.76,1.2688611]
[1741143565729,0.33948364,589.13,587.76,1.2688611]
[1741143565730,0.31227149,589.11,587.76,1.2688611]
[1741143565931,0.31227149,589.1,587.76,1.2688611]
[1741143566127,0.31227149,589.09,587.76,1.2688611]
[1741143566331,0.31227149,589.08,587.76,1.2688611]
[1741143566534,0.31227149,589.07,587.76,1.2688611]
[1741143566735,0.31227149,589.12,587.76,1.2688611]
[1741143566931,0.31227149,589.11,587.76,1.2688611]
[1741143567129,0.31227149,589.1,587.76,1.2688611]
[1741143567335,0.31227149,589.09,587.76,1.2688611]
[1741143567636,0.31227149,589.08,587.76,1.2688611]
[1741143567837,0.33948364,589.13,587.76,1.2688611]
[1741143568132,0.31242109,589.12,587.51,1.2688611]
[1741143568336,0.31242109,589.11,587.51,1.2688611]
[1741143568535,0.31242109,589.1,587.51,1.2688611]
[1741143568838,0.31242109,589.09,587.51,1.2688611]
[1741143569034,0.31242109,589.08,587.51,1.2688611]
[1741143569234,0.31242109,589.07,587.51,1.2688611]
[1741143569535,0.31242109,589.06,587.51,1.2688611]
[1741143569836,0.33953551,589.04,587.51,1.2688611]
[1741143570032,0.31242109,589.03,587.51,1.2688611]
[1741143570229,0.3395528,589.01,587.51,1.2688611]
[1741143570432,0.31242109,589.0,587.51,1.2688611]
[1741143570633,0.3395701,588.98,587.28,1.2688611]
[1741143570930,0.31242109,588.97,587.29,0.34054725]
[1741143574436,0.3395874,588.95,587.29,0.34054725]
[1741143574631,0.31242109,588.94,587.29,0.34054725]
[1741143574836,0.3396047,588.92,587.29,0.34054725]
[1741143575036,0.31242109,588.91,587.29,0.34054725]
[1741143575537,0.339622,588.89,587.29,0.34054725]
[1741143579642,0.339622,588.89,587.33,1.2688611]
[1741143579937,0.339622,588.89,587.34,0.34051826]
[1741143581241,0.339622,588.89,587.35,1.77521584]
[1741143581436,0.339622,588.89,587.36,0.34050667]
[1741143582441,0.339622,588.89,587.36,1.60936777]
[1741143583544,0.31234251,588.88,587.36,1.60936777]
[1741143583742,0.33963353,588.87,587.36,1.60936777]
[1741143583937,0.31234251,588.86,587.36,1.60936777]
[1741143584544,0.33964507,588.85,587.36,1.60936777]
[1741143584838,0.31234251,588.84,587.36,1.60936777]
[1741143585045,0.65199455,588.83,587.36,1.60936777]
[1741143585339,5.33637485,589.37,587.57,1.2688611]
[1741143585340,0.65200032,588.82,587.57,1.2688611]
[1741143585543,0.65200609,588.81,587.57,1.2688611]
[1741143585745,0.65201186,588.8,587.57,1.2688611]
[1741143585940,0.33967391,588.8,587.57,1.2688611]
[1741143586146,0.31234842,588.79,587.57,1.2688611]
[1741143586342,0.33968545,588.78,587.57,1.2688611]
[1741143587040,0.31235977,588.77,587.57,1.2688611]
[1741143587945,0.31235977,588.77,587.37,1.5058905]
[1741143587946,0.33969699,588.76,587.6,1.2688611]
[1741143588142,0.31235977,588.75,587.6,1.2688611]
[1741143588338,0.33970853,588.74,587.6,1.2688611]
[1741143588543,0.31235977,588.73,587.6,1.2688611]
[1741143588946,0.33970853,588.74,587.6,1.2688611]
[1741143589147,0.33970853,588.74,587.66,1.2688611]
[1741143590943,0.33970853,588.74,587.71,1.2688611]
[1741143592743,0.31237684,588.73,587.71,1.2688611]
[1741143592948,0.33972007,588.72,587.71,1.2688611]
[1741143593545,0.33972007,588.72,587.64,1.2688611]
[1741143594147,0.31238891,588.71,587.64,1.2688611]
[1741143594342,0.33973161,588.7,587.64,1.2688611]
[1741143595143,0.33973161,588.7,587.8,1.25490875]
[1741143595349,0.33973161,588.7,587.87,1.2688611]
[1741143596946,0.33973161,588.7,587.82,1.2688611]
[1741143599149,0.33973161,588.7,587.85,1.2688611]
[1741143601452,0.33973161,588.7,587.35,2.56210536]
[1741143601453,0.33973161,588.7,587.95,1.2688611]
[1741143603955,0.33973161,588.7,587.81,1.2688611]
[1741143607258,0.33973161,588.7,588.03,1.2688611]
[1741143607462,0.31240941,588.69,588.03,1.2688611]
[1741143607661,0.33974315,588.68,588.03,1.2688611]
[1741143609260,0.31242455,588.67,588.03,1.2688611]
[1741143609462,0.31242455,588.67,587.94,1.2688611]
[1741143610860,0.33975469,588.66,587.94,1.2688611]
[1741143611063,0.31242455,588.65,587.94,1.2688611]
[1741143611265,0.33976624,588.64,587.94,1.2688611]
[1741143611559,0.31242455,588.63,587.94,1.2688611]
[1741143612163,0.31242455,588.63,587.83,1.2688611]
[1741143613670,0.31256164,588.62,587.83,1.2688611]
[1741143613871,0.31256164,588.61,587.83,1.2688611]
[1741143614065,0.31256164,588.6,587.83,1.2688611]
[1741143614266,0.31256164,588.63,587.83,1.2688611]
[1741143614467,0.31256164,588.62,587.55,1.2688611]
[1741143614665,0.31256164,588.61,587.55,1.2688611]
[1741143614869,0.31256164,588.63,587.55,1.2688611]
[1741143615066,0.31256164,588.62,587.55,1.2688611]
[1741143615571,0.31256164,588.61,587.55,1.2688611]
[1741143615768,0.3397951,588.59,587.55,1.2688611]
[1741143615967,0.31256164,588.58,587.55,1.2688611]
[1741143617573,0.31256164,588.58,587.38,1.2688611]
[1741143619672,0.33981242,588.56,587.38,1.2688611]
[1741143619874,0.31256164,588.55,587.32,1.2688611]
[1741143620374,0.33982974,588.53,587.32,1.2688611]
[1741143620570,0.31257007,588.52,587.32,1.2688611]
[1741143620769,0.33984706,588.5,587.32,1.2688611]
[1741143620975,0.31257007,588.49,587.32,1.2688611]
[1741143621171,0.33986439,588.47,587.32,1.2688611]
[1741143621373,0.31257967,588.46,587.32,1.2688611]
[1741143621576,0.33987594,588.45,587.32,1.2688611]
[1741143621974,0.33987594,588.45,587.23,1.2688611]
[1741143623978,0.31257145,588.44,587.23,1.2688611]
[1741143624170,0.33988749,588.43,587.23,1.2688611]
[1741143624476,0.31257145,588.42,587.23,1.2688611]
[1741143625073,0.33989904,588.41,587.23,1.2688611]
[1741143625274,0.31257145,588.4,587.25,1.2688611]
[1741143625475,0.3399106,588.39,587.25,1.2688611]
[1741143625675,0.31257145,588.38,587.25,1.2688611]
[1741143625874,0.65250085,588.37,587.25,1.2688611]
[1741143626071,0.3125787,588.36,587.25,1.2688611]
[1741143626270,0.33992215,588.37,587.25,1.2688611]
[1741143627978,0.33992215,588.37,587.35,1.2688611]
[1741143630274,2.16276334,589.15,587.35,1.2688611]
[1741143630480,0.33948364,589.13,587.35,1.2688611]
[1741143630677,0.3123981,589.12,587.35,1.2688611]
[1741143630877,0.3123981,589.11,587.35,1.2688611]
[1741143631077,0.3123981,589.11,586.95,2.56210536]
[1741143631078,0.3123981,589.1,587.57,1.2688611]
[1741143631276,2.811886,589.12,587.57,1.2688611]
[1741143631479,0.3123981,589.11,587.57,1.2688611]
[1741143631679,0.33950669,589.09,587.57,1.2688611]
[1741143631880,0.3123981,589.08,587.57,1.2688611]
[1741143632083,0.33952398,589.06,587.57,1.2688611]
[1741143632378,0.3123981,589.05,587.57,1.2688611]
[1741143632575,0.33954127,589.03,587.57,1.2688611]
[1741143632779,0.31239804,589.02,587.57,1.2688611]
[1741143632976,0.33955857,589.0,587.57,1.2688611]
[1741143633181,0.31239804,588.99,587.57,1.2688611]
[1741143633382,0.31239804,588.99,587.67,1.2688611]
[1741143633383,0.33957586,588.97,587.67,1.2688611]
[1741143633584,0.31239804,588.96,587.67,1.2688611]
[1741143633778,0.33959316,588.94,587.67,1.2688611]
[1741143633978,0.31239804,588.93,587.67,1.2688611]
[1741143634182,0.33961046,588.91,587.67,1.2688611]
[1741143634387,0.31239804,588.9,587.67,1.2688611]
[1741143634588,0.33962776,588.88,587.67,1.2688611]
[1741143634783,0.31239804,588.87,587.67,1.2688611]
[1741143635081,0.33964507,588.85,587.67,1.2688611]
[1741143635278,0.31239804,588.84,587.67,1.2688611]
[1741143635480,0.3396566,588.83,587.67,1.2688611]
[1741143636087,0.31239846,588.82,587.67,1.2688611]
[1741143636286,0.33966814,588.81,587.67,1.2688611]
[1741143636488,0.33966814,588.81,587.65,1.2688611]
[1741143639187,0.33966814,588.81,587.44,1.2688611]
[1741143640094,0.33966814,588.81,587.45,0.3404545]
[1741143640993,0.31241839,588.8,587.45,0.3404545]
[1741143641794,0.33968545,588.78,587.45,0.3404545]
[1741143641995,0.31241839,588.77,587.45,0.3404545]
[1741143642197,0.33970276,588.75,587.45,0.3404545]
[1741143642497,0.31241839,588.74,587.45,0.3404545]
[1741143642696,0.3397143,588.73,587.45,0.3404545]
[1741143642890,0.31241839,588.72,587.45,0.3404545]
[1741143643092,0.3397143,588.73,587.45,0.3404545]
[1741143645093,0.3397143,588.73,587.69,1.2688611]
[1741143646691,0.3397143,588.73,587.7,1.2688611]
[1741143649396,0.3397143,588.73,587.45,0.3404545]